bitfinex-derivatives/quotes_SOLF0:USTF0_20220109
["timestamp","ask_amount","ask_price","bid_price","bid_amount"]
[1641740862109,2.61892186,139.38,139.31,2.6823639]
[1641740862508,2.61892186,139.37,139.31,2.6823639]
[1641740862709,9.42492186,139.37,139.31,2.6823639]
[1641740863109,2.61892186,139.36,139.31,2.6823639]
[1641740863509,2.61892186,139.35,139.31,2.6823639]
[1641740864109,2.61892186,139.34,139.31,2.6823639]
[1641740864309,10.00792186,139.34,139.31,2.6823639]
[1641740864611,10.00792186,139.34,139.3,64.9228]
[1641740864810,10.00792186,139.34,139.27,108.35991323]
[1641740864811,2.61892186,139.33,139.27,108.35991323]
[1641740865009,4.41292186,139.33,139.27,108.35991323]
[1641740865209,2.61892186,139.32,139.28,4.07849563]
[1641740865611,2.61892186,139.31,139.28,4.07849563]
[1641740865809,11.23892186,139.31,139.28,4.07849563]
[1641740866110,2.61892186,139.3,139.28,4.07849563]
[1641740866511,2.61892186,139.29,139.28,4.07849563]
[1641740867811,2.61892186,139.29,139.25,69.46749563]
[1641740868212,2.61892186,139.28,139.26,4.07849563]
[1641740868413,9.85892186,139.28,139.26,6.76222444]
[1641740868614,7.24,139.28,139.26,6.76222444]
[1641740869013,1.544086,139.27,139.25,65.389]
[1641740869213,1.544086,139.27,139.23,15.21102323]
[1641740869414,1.544086,139.27,139.26,4.07917033]
[1641740869815,1.544086,139.27,139.24,4.07917033]
[1641740871017,1.544086,139.27,139.25,2.68358454]
[1641740871617,1.544086,139.27,139.26,4.07917033]
[1641740872516,1.544086,139.27,139.26,6.76275487]
[1641740872716,1.544086,139.27,139.26,2.68358454]
[1641740873116,1.544086,139.27,139.26,6.76275487]
[1641740877026,13.24,139.28,139.26,6.76275487]
[1641740877428,13.24,139.28,139.27,4.07917033]
[1641740877627,13.24,139.28,139.27,2.07917033]
[1641740877829,13.24,139.28,139.27,4.76275487]
[1641740878228,11.24,139.28,139.27,4.76275487]
[1641740879231,13.3835439,139.28,139.27,4.76275487]
[1641740881835,15.3835439,139.28,139.27,4.76275487]
[1641740898457,15.3835439,139.28,139.27,19.9737781]
[1641740899858,15.3835439,139.28,139.27,4.76275487]
[1641740901159,15.3835439,139.28,139.22,19.68849273]
[1641740901160,46.56874239,139.28,139.22,5.68849273]
[1641740901362,4.0,139.23,139.07,68.0528]
[1641740901561,4.0,139.16,139.15,87.81068174]
[1641740901760,68.52458,139.16,139.06,27.66479]
[1641740901961,4.0,139.15,139.11,125.49199746]
[1641740902162,4.0,139.14,139.05,151.75501781]
[1641740902365,4.0,139.14,139.04,4.0]
[1641740902562,2.14796899,139.13,139.06,4.08402558]
[1641740902762,11.10696899,139.13,139.09,4.0]
[1641740902962,8.959,139.13,139.09,4.0]
[1641740903162,8.959,139.13,139.07,4.0]
[1641740903363,2.14796899,139.12,139.1,4.08402558]
[1641740903766,2.14796899,139.12,139.08,8.08402558]
[1641740903966,2.14796899,139.12,139.09,4.0]
[1641740904264,2.14796899,139.12,139.09,8.08402558]
[1641740904764,2.14796899,139.12,139.1,4.08402558]
[1641740905365,1e-08,139.12,139.1,4.08402558]
[1641740905565,36.62379,139.13,139.1,4.08402558]
[1641740906368,36.62379,139.13,139.1,8.08402558]
[1641740906567,1.50282541,139.12,139.1,8.08402558]
[1641740906967,1.50282541,139.12,139.11,4.08402558]
[1641740907771,1.50282541,139.12,139.09,4.08402558]
[1641740908170,1.50282541,139.12,139.08,4.08402558]
[1641740908873,1.50282541,139.12,139.07,8.08402558]
[1641740909072,1.50282541,139.12,139.09,4.08402558]
[1641740909476,1.50282541,139.12,139.1,4.0]
[1641740909877,1.50282541,139.12,139.07,5.88102558]
[1641740910078,1.50282541,139.12,139.11,4.08402558]
[1641740910479,1.50282541,139.12,139.08,4.08402558]
[1641740910678,1.50282541,139.12,139.1,4.0]
[1641740910880,1.50282541,139.12,139.09,4.0]
[1641740911178,1.50282541,139.12,139.07,5.88102558]
[1641740911382,1.50282541,139.12,139.1,4.08402558]
[1641740911781,1.50282541,139.12,139.07,8.08402558]
[1641740912180,1.50282541,139.12,139.08,8.08402558]
[1641740912384,1.50282541,139.12,139.09,4.0]
[1641740912582,1.50282541,139.12,139.09,1.797]
[1641740912782,1.50282541,139.12,139.09,5.88102558]
[1641740912984,10.959,139.13,139.09,5.88102558]
[1641740913181,10.959,139.13,139.11,4.0]
[1641740914282,10.959,139.13,139.12,4.08264765]
[1641740915084,12.97055491,139.13,139.1,4.08264765]
[1641740915484,2.01155491,139.12,139.1,4.08264765]
[1641740918387,2.01155491,139.12,139.07,4.08264765]
[1641740918588,2.01155491,139.12,139.09,4.0]
[1641740919190,2.01155491,139.12,139.1,4.08264765]
[1641740919388,1.797,139.15,139.11,4.0]
[1641740919589,1.796,139.21,139.13,4.0]
[1641740919888,27.66479,139.21,139.13,4.0]
[1641740920089,27.66479,139.21,139.17,0.204]
[1641740920288,27.66479,139.21,139.18,0.204]
[1641740920489,1.40809175,139.2,139.17,6.082]
[1641740920992,1.40809175,139.2,139.18,0.204]
[1641740921189,1.40809175,139.2,139.16,0.204]
[1641740921390,8.03209175,139.2,139.16,0.204]
[1641740921590,8.03209175,139.2,139.12,4.0]
[1641740921792,8.03209175,139.2,139.14,4.0]
[1641740921989,1.40809175,139.19,139.14,4.0]
[1641740922190,1.40809175,139.19,139.18,0.204]
[1641740922390,1.40809175,139.19,139.17,0.204]
[1641740922791,1.40809175,139.19,139.15,4.08205863]
[1641740922991,1.40809175,139.2,139.13,4.0]
[1641740923291,1.40809175,139.2,139.14,4.08187744]
[1641740923891,3.40809175,139.2,139.19,0.204]
[1641740924091,3.40809175,139.2,139.19,9.633]
[1641740924591,3.40809175,139.2,139.19,13.71487744]
[1641740927200,27.66479,139.27,139.19,19.51087744]
[1641740927398,27.66479,139.27,139.19,88.35107744]
[1641740927600,27.66479,139.27,139.19,86.35107744]
[1641740927797,25.66489,139.27,139.25,0.204]
[1641740927997,25.66489,139.27,139.24,0.204]
[1641740928698,1.26514145,139.26,139.24,0.204]
[1641740929198,1.26514145,139.26,139.23,0.204]
[1641740929601,1.26514145,139.26,139.19,68.8402]
[1641740929803,9.78614145,139.26,139.19,68.8402]
[1641740930203,9.78614145,139.26,139.2,4.08077783]
[1641740930603,1.26514145,139.25,139.22,0.204]
[1641740932807,1.26514145,139.25,139.17,64.8138]
[1641740933306,1.26514145,139.25,139.18,4.08106333]
[1641740933807,1.26514145,139.25,139.21,0.204]
[1641740936012,27.66479,139.24,139.17,64.8138]
[1641740936412,1.26514145,139.23,139.18,4.08127782]
[1641740936813,1.26514145,139.23,139.2,0.204]
[1641740937016,1.26514145,139.22,139.2,0.204]
[1641740937814,1.26514145,139.21,139.2,0.204]
[1641740940217,1.26514145,139.21,139.15,27.66479]
[1641740940922,1.26514145,139.2,139.16,4.08140572]
[1641740941121,1.26514145,139.2,139.19,0.204]
[1641740941322,1.26514145,139.19,139.18,0.204]
[1641740941724,1.26514145,139.19,139.18,4.08140572]
[1641740942327,1.26514145,139.19,139.13,42.87442604]
[1641740942523,1.26514145,139.19,139.16,0.204]
[1641740942725,1.26514145,139.18,139.16,0.204]
[1641740942924,9.59714145,139.18,139.16,0.204]
[1641740943324,1.26514145,139.17,139.16,0.204]
[1641740943929,1.26514145,139.17,139.11,8.98145664]
[1641740944129,3.796,139.16,139.11,8.98145664]
[1641740944329,5.06114145,139.17,139.11,7.38945664]
[1641740944532,1.26514145,139.17,139.11,7.38945664]
[1641740944729,1.26514145,139.15,139.12,4.08303437]
[1641740945130,1.26514145,139.16,139.13,0.204]
[1641740945331,1.26514145,139.16,139.12,11.01803437]
[1641740945529,1.26514145,139.15,139.14,0.204]
[1641740945729,1.26514145,139.15,139.12,9.61273806]
[1641740945929,1.26514145,139.15,139.14,4.08248903]
[1641740946331,1.26514145,139.15,139.14,0.204]
[1641740946731,1.26514145,139.15,139.13,4.08248903]
[1641740947030,1.26514145,139.15,139.14,4.08248903]
[1641740947230,7.221,139.16,139.14,4.08248903]
[1641740947636,7.221,139.16,139.13,4.08248903]
[1641740947832,7.221,139.16,139.13,4.28648903]
[1641740948232,34.88579,139.16,139.13,4.28648903]
[1641740948532,34.88579,139.16,139.14,4.28648903]
[1641740949032,34.88579,139.16,139.15,4.08248903]
[1641740951135,34.88579,139.16,139.13,4.28648903]
[1641740951538,34.88579,139.16,139.14,4.08248903]
[1641740952436,34.88579,139.16,139.13,4.08248903]
[1641740955440,34.88579,139.16,139.13,4.28648903]
[1641740955639,34.88579,139.16,139.13,4.08248903]
[1641740955840,34.88579,139.16,139.12,2.67773806]
[1641740956242,34.88579,139.16,139.13,4.08294364]
[1641740956843,34.88579,139.16,139.13,4.28694364]
[1641740957243,34.88579,139.16,139.13,4.08294364]
[1641740957443,34.88579,139.16,139.12,2.88173806]
[1641740957944,34.88579,139.16,139.13,4.0827416]
[1641740959345,34.88579,139.16,139.13,4.2867416]
[1641740959945,34.88579,139.16,139.14,4.0827416]
[1641740960148,7.221,139.16,139.15,0.204]
[1641740960349,27.66479,139.2,139.15,0.204]
[1641740960552,27.66479,139.2,139.14,4.0827416]
[1641740960949,27.66479,139.2,139.16,0.204]
[1641740961148,31.46079,139.2,139.12,73.03873806]
[1641740961348,31.46079,139.2,139.14,0.204]
[1641740961750,27.66479,139.2,139.14,0.204]
[1641740961948,3.796,139.19,139.14,0.204]
[1641740962349,3.796,139.19,139.12,73.03873806]
[1641740962551,0.98506666,139.18,139.12,73.03873806]
[1641740962751,0.98506666,139.18,139.14,0.204]
[1641740962951,0.98506666,139.18,139.13,4.08262264]
[1641740963453,0.98506666,139.18,139.14,0.204]
[1641740963652,0.98506666,139.18,139.13,4.08262264]
[1641740963852,0.98506666,139.18,139.16,0.204]
[1641740964053,0.98506666,139.19,139.17,0.204]
[1641740964256,0.98506666,139.19,139.14,8.966]
[1641740964453,0.98506666,139.19,139.17,8.515]
[1641740964655,0.98506666,139.19,139.17,8.719]
[1641740966854,0.98506666,139.19,139.17,8.515]
[1641740967656,2.98506666,139.19,139.17,8.515]
[1641740967955,2.98506666,139.19,139.12,88.28373503]
[1641740968155,12.21906666,139.19,139.12,88.28373503]
[1641740968357,0.98506666,139.18,139.15,0.204]
[1641740970261,0.98506666,139.18,139.12,88.28373503]
[1641740970461,0.98506666,139.18,139.12,73.03873806]
[1641740970764,0.98506666,139.18,139.13,4.08244272]
[1641740970967,0.98506666,139.18,139.15,0.204]
[1641740971164,0.98506666,139.18,139.13,6.76809034]
[1641740971564,0.98506666,139.18,139.14,4.08244272]
[1641740972064,0.98506666,139.18,139.14,6.76809034]
[1641740972565,0.98506666,139.18,139.15,4.08244272]
[1641740972765,0.98506666,139.18,139.15,6.76809034]
[1641740973265,0.98506666,139.18,139.16,2.68564762]
[1641740973966,0.98506666,139.18,139.13,2.68564762]
[1641740974569,0.98506666,139.18,139.14,4.08245305]
[1641740975269,0.98506666,139.18,139.15,2.68564762]
[1641740975470,27.66479,139.17,139.15,2.68564762]
[1641740976169,0.98506666,139.16,139.15,2.68564762]
[1641740976569,0.98506666,139.16,139.15,0.204]
[1641740976969,0.98506666,139.16,139.15,4.28629836]
[1641740977170,0.98506666,139.16,139.15,6.97194598]
[1641740978770,2.0,139.19,139.15,6.97194598]
[1641740978971,2.0,139.19,139.18,0.204]
[1641740979170,2.0,139.19,139.18,9.15]
[1641740979371,15.24499697,139.21,139.18,9.15]
[1641740979570,15.24499697,139.21,139.18,36.81479]
[1641740979770,13.24499697,139.21,139.19,0.204]
[1641740979973,0.88596432,139.2,139.16,65.4]
[1641740980372,0.88596432,139.2,139.17,4.08149163]
[1641740980772,0.88596432,139.2,139.18,0.204]
[1641740981173,0.88596432,139.2,139.17,4.08149163]
[1641740981375,1.796,139.22,139.19,0.204]
[1641740981574,1.796,139.22,139.17,4.08149163]
[1641740981775,0.88596432,139.21,139.19,0.204]
[1641740981974,0.88596432,139.21,139.18,2.68533975]
[1641740982674,0.88596432,139.21,139.18,0.204]
[1641740982874,0.88596432,139.21,139.17,2.68533975]
[1641740983074,0.88596432,139.21,139.19,0.204]
[1641740983476,2.0,139.2,139.19,0.204]
[1641740983978,2.88596432,139.2,139.19,0.204]
[1641740984375,2.88596432,139.2,139.16,65.4]
[1641740984975,0.88596432,139.19,139.17,4.08130914]
[1641740985176,0.88596432,139.19,139.18,0.204]
[1641740985675,6.432e-05,139.19,139.18,4.28530914]
[1641740986076,6.432e-05,139.19,139.18,6.96780728]
[1641740988178,6.432e-05,139.19,139.18,6.76380728]
[1641740988379,6.432e-05,139.19,139.18,4.08130914]
[1641740988678,6.432e-05,139.19,139.18,0.204]
[1641740989079,1.796,139.22,139.18,4.28530914]
[1641740989283,27.66479,139.25,139.21,0.204]
[1641740989481,27.66479,139.27,139.21,5.958]
[1641740989680,25.66499,139.27,139.21,5.958]
[1641740989880,25.66499,139.27,139.21,33.62279]
[1641740990383,2.40256708,139.26,139.21,33.62279]
[1641740990582,3.21867886,139.26,139.21,5.958]
[1641740990985,0.81611178,139.25,139.21,5.754]
[1641740991286,0.81611178,139.25,139.23,0.204]
[1641740991786,0.81611178,139.26,139.23,0.204]
[1641740992984,0.81611178,139.26,139.22,0.204]
[1641740993185,2.81611178,139.26,139.18,11.18158641]
[1641740993783,2.81611178,139.26,139.22,0.204]
[1641740993983,0.81611178,139.25,139.22,0.204]
[1641740997591,0.81611178,139.25,139.2,0.204]
[1641740997792,11.50111178,139.25,139.19,27.66479]
[1641740997991,11.50111178,139.25,139.18,0.204]
[1641740998191,0.81611178,139.24,139.18,0.204]
[1641740998591,3.21514252,139.24,139.16,65.4]
[1641740998791,3.21514252,139.24,139.19,0.204]
[1641740998992,0.81611178,139.23,139.19,0.204]
[1641740999592,3.21514252,139.23,139.19,0.204]
[1641740999891,30.87993252,139.23,139.19,0.204]
[1641741000091,28.48090178,139.23,139.16,65.4]
[1641741000293,4.61211178,139.22,139.17,0.204]
[1641741000494,4.61211178,139.22,139.15,0.204]
[1641741000696,0.81611178,139.21,139.15,0.204]
[1641741000894,4.61211178,139.21,139.15,0.204]
[1641741001097,3.796,139.2,139.15,0.204]
[1641741001295,8.435,139.2,139.15,0.204]
[1641741001697,0.81611178,139.19,139.16,4.08220358]
[1641741002097,0.81611178,139.19,139.15,0.204]
[1641741005100,6.81611178,139.19,139.15,0.204]
[1641741005797,0.81611178,139.18,139.15,0.204]
[1641741006001,27.66479,139.17,139.15,0.204]
[1641741006698,0.81611178,139.16,139.15,0.204]
[1641741011501,7.67511178,139.16,139.15,0.204]
[1641741012105,7.67511178,139.16,139.12,2.67773806]
[1641741012304,11.47111178,139.16,139.12,2.67773806]
[1641741012706,3.796,139.13,139.09,10.52566894]
[1641741013004,0.81611178,139.12,139.09,10.52566894]
[1641741013506,0.81611178,139.12,139.1,4.08395112]
[1641741014508,0.81611178,139.13,139.1,4.08395112]
[1641741014907,0.81611178,139.13,139.11,0.204]
[1641741015507,0.81611178,139.13,139.09,10.72966894]
[1641741015707,0.81611178,139.13,139.09,10.52566894]
[1641741016107,0.81611178,139.13,139.1,4.08366967]
[1641741016308,4.61211178,139.13,139.1,4.08366967]
[1641741016507,0.81611178,139.13,139.1,4.08366967]
[1641741018409,0.81611178,139.13,139.1,4.28766967]
[1641741018609,0.81611178,139.13,139.1,4.08366967]
[1641741018810,0.81611178,139.13,139.1,4.28766967]
[1641741019009,0.81611178,139.13,139.1,4.08366967]
[1641741019209,0.81611178,139.13,139.12,0.204]
[1641741019610,0.81611178,139.13,139.1,4.08366967]
[1641741019810,0.81611178,139.13,139.09,10.52566894]
[1641741020212,0.81611178,139.13,139.1,0.204]
[1641741020513,0.81611178,139.13,139.1,4.28737424]
[1641741020811,0.81611178,139.13,139.08,4.08337424]
[1641741021216,0.81611178,139.13,139.09,0.204]
[1641741021614,0.81611178,139.13,139.1,4.08337424]
[1641741022215,0.81611178,139.13,139.08,4.08337424]
[1641741022415,0.81611178,139.13,139.1,0.204]
[1641741022817,0.81611178,139.13,139.11,4.08337424]
[1641741023620,6.81611178,139.13,139.11,4.08337424]
[1641741023818,3.796,139.12,139.11,4.08337424]
[1641741024019,6.821,139.12,139.11,4.08337424]
[1641741024220,7.63711178,139.12,139.09,4.08337424]
[1641741024519,7.63711178,139.12,139.07,70.4575]
[1641741024719,3.796,139.11,139.07,0.204]
[1641741024918,0.81611178,139.11,139.08,4.08391762]
[1641741025520,0.81611178,139.11,139.08,0.204]
[1641741025919,0.81611178,139.11,139.09,4.08391762]
[1641741027719,2.81611178,139.11,139.09,4.08391762]
[1641741028122,0.81611178,139.1,139.07,0.204]
[1641741028322,0.81611178,139.1,139.06,4.08391762]
[1641741028521,0.81611178,139.1,139.08,4.28791762]
[1641741028922,0.81611178,139.1,139.09,6.76731193]
[1641741029721,2.0,139.11,139.09,6.97131193]
[1641741029921,2.0,139.11,139.1,0.204]
[1641741030523,2.0,139.11,139.1,2.88739431]
[1641741031124,2.81662537,139.11,139.1,6.97052114]
[1641741032927,2.537e-05,139.11,139.1,6.97052114]
[1641741033329,4.0,139.13,139.1,6.97052114]
[1641741033527,4.0,139.13,139.1,6.76652114]
[1641741033928,4.0,139.13,139.1,2.88739431]
[1641741034128,4.0,139.13,139.1,2.68339431]
[1641741034429,0.81667292,139.12,139.11,6.7667589]
[1641741034829,0.81667292,139.12,139.11,6.9707589]
[1641741036829,0.81667292,139.12,139.11,6.7667589]
[1641741037232,0.81667292,139.12,139.11,2.68339431]
[1641741037431,0.81667292,139.12,139.09,81.54265637]
[1641741037631,0.81667292,139.12,139.09,66.3246]
[1641741038031,0.81667292,139.12,139.1,4.08376081]
[1641741038235,0.81667292,139.12,139.1,6.76901106]
[1641741038932,0.81667292,139.12,139.09,66.3246]
[1641741039134,8.85067292,139.12,139.09,66.3246]
[1641741039332,8.85067292,139.12,139.1,4.08383684]
[1641741039733,8.85067292,139.12,139.1,6.7695204]
[1641741039935,0.81667292,139.11,139.1,2.68568356]
[1641741040336,0.81667292,139.11,139.08,66.1521]
[1641741040536,0.81667292,139.11,139.08,66.3561]
[1641741040937,0.81667292,139.11,139.09,4.08411304]
[1641741041139,0.81667292,139.11,139.09,6.77087152]
[1641741041839,0.81667292,139.11,139.1,4.08411304]
[1641741042439,0.81667292,139.11,139.08,66.1521]
[1641741042839,0.81667292,139.11,139.09,6.77068713]
[1641741043242,0.81667292,139.11,139.09,2.68660443]
[1641741043443,0.81667292,139.11,139.08,66.3561]
[1641741044043,0.81667292,139.11,139.09,4.08420095]
[1641741044243,0.81667292,139.11,139.09,6.77065602]
[1641741044848,0.81667292,139.11,139.09,4.08420095]
[1641741045047,0.81667292,139.11,139.09,0.204]
[1641741045345,0.81667292,139.11,139.08,66.1521]
[1641741045544,0.81667292,139.11,139.08,66.3561]
[1641741045945,0.81667292,139.11,139.09,4.08417482]
[1641741046248,0.81667292,139.11,139.09,6.77032264]
[1641741046946,0.81667292,139.11,139.08,66.3561]
[1641741047646,0.81667292,139.11,139.09,6.77008137]
[1641741048046,0.81667292,139.11,139.09,2.68593372]
[1641741048446,0.81667292,139.11,139.08,0.204]
[1641741048848,0.81667292,139.11,139.09,4.08423659]
[1641741049648,0.81667292,139.11,139.06,4.08423659]
[1641741049848,0.81667292,139.11,139.1,0.204]
[1641741050048,0.81667292,139.12,139.06,4.08423659]
[1641741050449,0.81667292,139.12,139.08,0.204]
[1641741050649,3.796,139.11,139.07,17.90347906]
[1641741051050,7.20267292,139.12,139.08,0.204]
[1641741051252,0.81667292,139.12,139.08,9.39]
[1641741051452,0.81667292,139.11,139.08,9.186]
[1641741051850,0.81667292,139.12,139.08,9.186]
[1641741052051,0.81667292,139.12,139.1,0.204]
[1641741052852,0.81667292,139.12,139.08,9.186]
[1641741053253,0.81667292,139.12,139.08,9.39]
[1641741053652,3.796,139.11,139.08,9.39]
[1641741054155,0.81667292,139.12,139.08,9.39]
[1641741054354,0.81667292,139.1,139.08,9.186]
[1641741054755,27.66479,139.1,139.08,9.186]
[1641741055055,0.81667292,139.09,139.08,9.186]
[1641741055756,12.89467292,139.09,139.04,15.21805637]
[1641741055957,3.796,139.08,139.06,0.204]
[1641741056458,4.61267292,139.07,139.02,2.68575421]
[1641741056658,3.796,139.03,139.02,2.68575421]
[1641741056856,9.536,139.03,139.02,2.68575421]
[1641741057156,10.35267292,139.03,139.02,2.68575421]
[1641741057457,10.35267292,139.03,139.0,2.68575421]
[1641741057656,3.796,139.01,139.0,2.68575421]
[1641741057858,3.796,139.02,138.98,15.21805637]
[1641741058056,0.81667292,139.01,138.98,15.21805637]
[1641741058257,3.796,138.99,138.98,15.21805637]
[1641741058461,8.66,138.99,138.98,15.21805637]
[1641741058658,36.32479,138.99,138.96,0.204]
[1641741058858,37.14146292,138.99,138.96,0.204]
[1641741059260,0.81667292,138.98,138.96,0.204]
[1641741059457,0.81667292,138.98,138.97,0.204]
[1641741059858,0.81667292,138.98,138.95,69.498]
[1641741060458,0.81667292,138.98,138.93,15.21805637]
[1641741060659,0.81667292,138.98,138.92,109.26134637]
[1641741061059,0.81667292,138.98,138.96,0.204]
[1641741061559,0.81667292,138.98,138.92,81.59655637]
[1641741061960,0.81667292,138.98,138.92,66.3785]
[1641741062561,4.81667292,138.98,138.92,66.3785]
[1641741062963,27.66479,138.95,138.92,66.3785]
[1641741063162,27.66479,138.95,138.93,4.0]
[1641741063363,0.81667292,138.97,138.93,4.0]
[1641741063563,27.66479,138.99,138.92,74.7779]
[1641741063763,27.66479,138.99,138.92,70.7779]
[1641741063964,0.81743646,138.98,138.92,70.7779]
[1641741064666,0.81743646,138.98,138.96,4.0]
[1641741064865,27.66479,139.03,138.97,4.0]
[1641741065465,27.66479,139.03,138.98,4.0]
[1641741065666,27.66479,139.05,138.97,5.798]
[1641741065867,27.66479,139.05,138.97,4.0]
[1641741066066,27.66479,139.05,138.96,41.05179]
[1641741066266,27.66479,139.05,138.97,4.0]
[1641741066468,27.66479,139.05,138.96,41.05179]
[1641741066869,0.81724847,139.04,138.96,41.05179]
[1641741067069,0.81724847,139.04,138.96,13.387]
[1641741067268,0.81724847,139.04,138.96,9.387]
[1641741067469,4.81724847,139.04,138.96,9.387]
[1641741067668,4.0,139.03,138.96,9.387]
[1641741067874,4.0,139.03,138.94,7.1942446]
[1641741068068,0.81724847,139.02,138.94,72.7017446]
[1641741068269,12.58924847,139.02,138.94,72.7017446]
[1641741068469,12.58924847,139.02,138.94,65.5075]
[1641741068669,8.58924847,139.02,138.94,65.5075]
[1641741068869,0.81724847,139.01,138.94,65.5075]
[1641741069069,27.66479,139.0,138.94,65.5075]
[1641741069670,0.81724847,138.99,138.94,65.5075]
[1641741069869,9.89224847,138.99,138.94,65.5075]
[1641741070473,0.81724847,138.98,138.92,7.1952799]
[1641741070670,0.81724847,138.98,138.92,76.4982799]
[1641741071070,0.81724847,138.98,138.94,4.0]
[1641741071470,0.81724847,138.98,138.92,76.4982799]
[1641741071670,9.026,138.98,138.92,76.4982799]
[1641741072075,0.81724847,138.97,138.92,76.4982799]
[1641741072871,9.026,138.98,138.92,76.4982799]
[1641741073671,9.026,138.98,138.93,4.08719594]
[1641741076275,4.0,138.97,138.93,4.08719594]
[1641741076579,4.0,138.96,138.93,4.08719594]
[1641741077478,4.0,138.94,138.9,15.21805637]
[1641741077675,10.836,138.94,138.9,15.21805637]
[1641741078176,4.0,138.91,138.86,65.5342]
[1641741078376,4.0,138.9,138.86,65.5342]
[1641741078776,4.0,138.89,138.87,4.08957242]
[1641741078975,4.0,138.88,138.87,4.08957242]
[1641741079176,68.00449448,138.88,138.86,4.08957242]
[1641741079375,64.00449448,138.88,138.86,4.08957242]
[1641741079575,0.81791448,138.87,138.86,4.08957242]
[1641741079977,0.81791448,138.87,138.84,4.08957242]
[1641741080679,4.0,138.93,138.84,15.28899647]
[1641741080878,4.0,138.94,138.84,15.07557242]
[1641741081279,4.0,138.94,138.84,6.986]
[1641741081280,27.66479,138.89,138.84,6.986]
[1641741082078,27.66479,138.89,138.83,88.07095637]
[1641741082280,0.81800904,138.88,138.85,4.09004521]
[1641741082678,0.81800904,138.88,138.84,4.09004521]
[1641741083279,27.66479,138.86,138.84,4.09004521]
[1641741083479,33.52179,138.86,138.84,4.09004521]
[1641741085881,27.66479,138.86,138.84,4.09004521]
[1641741086080,4.0,138.88,138.84,4.09004521]
[1641741086980,0.91824388,138.87,138.84,4.09004521]
[1641741087180,31.66479,138.95,138.86,38.86317756]
[1641741087381,27.66479,138.95,138.87,4.0]
[1641741087582,2.0,138.88,138.86,47.45317756]
[1641741087781,2.0,138.88,138.86,45.65417756]
[1641741087982,31.66479,138.95,138.86,45.65417756]
[1641741088182,4.0,138.94,138.86,45.65417756]
[1641741088385,4.0,138.94,138.87,4.0]
[1641741088683,0.81785784,138.93,138.91,2.0]
[1641741089486,0.81785784,138.94,138.92,4.08928919]
[1641741090186,0.81785784,138.94,138.91,2.0]
[1641741090386,0.81785784,138.94,138.93,2.0]
[1641741090787,0.81785784,138.94,138.93,8.188]
[1641741090985,0.81785784,138.94,138.93,12.2769658]
[1641741091587,0.81785784,138.96,138.93,12.2769658]
[1641741091985,2.81785784,138.94,138.93,12.2769658]
[1641741092886,2.81785784,138.94,138.93,4.0889658]
[1641741092887,11.23985784,138.94,138.93,4.0889658]
[1641741093288,38.90464784,138.94,138.9,4.0889658]
[1641741093687,0.81785784,138.93,138.89,11.28579919]
[1641741094188,0.81785784,138.93,138.9,4.0889658]
[1641741094389,8.76285784,138.93,138.9,4.0889658]
[1641741095092,0.81785784,138.92,138.9,4.0889658]
[1641741095391,0.81785784,138.92,138.85,19.21805637]
[1641741095392,0.81785784,138.92,138.85,15.21805637]
[1641741095596,2.0,138.89,138.86,15.21805637]
[1641741095790,6.611,138.91,138.82,40.65332526]
[1641741095992,2.0,138.9,138.85,2.0]
[1641741096492,2.0,138.89,138.79,69.5156]
[1641741096690,2.0,138.89,138.82,2.0]
[1641741096890,2.8506738,138.89,138.82,2.0]
[1641741097092,4.8506738,138.89,138.79,69.5156]
[1641741097292,27.66479,138.86,138.83,2.0]
[1641741097592,2.8506738,138.85,138.83,6.09082262]
[1641741097993,27.66479,138.86,138.84,4.09082262]
[1641741098592,0.81821229,138.85,138.81,2.0]
[1641741098994,0.81821229,138.85,138.82,4.09082262]
[1641741099293,2.81821229,138.85,138.82,4.09082262]
[1641741099695,2.0,138.83,138.76,2.0]
[1641741099894,2.0,138.78,138.76,2.0]
[1641741100097,2.0,138.77,138.74,42.65332526]
[1641741100295,7.942,138.78,138.7,69.47384547]
[1641741100496,2.0,138.77,138.73,2.0]
[1641741100894,5.942,138.78,138.73,2.0]